[Event "European Online Club-ch-I 2021"]
[Site "Online"]
[Date "2021.03.27"]
[Round "6.19"]
[White "Polak, Tomas"]
[Black "Muradli, Mahammad"]
[Result "0-1"]
[ECO "A41"]
[WhiteElo "2553"]
[BlackElo "2449"]
[Annotator "ChessBase"]
[PlyCount "92"]
[EventDate "2021.03.27"]
[EventType "team-tourn"]
[EventCountry "NET"]
[SourceTitle "playchess.com"]
[Source "ChessBase"]
[SourceQuality "1"]
[TimeControl "900+5"]

1. d4 {[%emt 0:00:00]} d6 {[%emt 0:00:02]} 2. Nf3 {[%emt 0:00:07]} g6 {[%emt 0:00:02]} 3. c4 {[%emt 0:00:03]} Bg7 {[%emt 0:00:01]} 4. e4 {[%emt 0:00:03]} Bg4 {[%emt 0:00:53]} 5. Be2 {[%emt 0:00:12]} Nc6 {[%emt 0:00:22]} 6. d5 {[%emt 0:00:55]} Bxf3 {[%emt 0:00:05]} 7. Bxf3 {[%emt 0:00:02]} Nd4 {[%emt 0:00:04]} 8. Nc3 {[%emt 0:00:06]} c5 {[%emt 0:00:55]} 9. dxc6 {[%emt 0:00:28]} bxc6 {[%emt 0:00:29]} 10. O-O {[%emt 0:00:21]} Rb8 {[%emt 0:01:10]} 11. Qd3 {[%emt 0:00:52]} c5 {[%emt 0:00:45]} 12. Bd1 {[%emt 0:00:08]} Nf6 {[%emt 0:00:52]} 13. Ba4+ {[%emt 0:00:59]} Nd7 {[%emt 0:00:06]} 14. f4 {[%emt 0:00:45]} O-O {[%emt 0:00:05]} 15. Rf2 {[%emt 0:00:27]} Nb6 {[%emt 0:03:09]} 16. Bd1 {[%emt 0:00:14]} e6 {[%emt 0:00:31]} 17. Bf3 {[%emt 0:00:32]} a5 {[%emt 0:00:30]} 18. Bd2 {[%emt 0:00:27]} a4 {[%emt 0:00:16]} 19. Raf1 {[%emt 0:00:17]} Qc8 {[%emt 0:00:18]} 20. Bd1 {[%emt 0:01:15]} Qa6 {[%emt 0:00:47]} 21. Nb5 {[%emt 0:00:34]} Nxc4 {[%emt 0:01:30]} 22. Nxd6 {[%emt 0:00:06]} Qxd6 {[%emt 0:00:23]} 23. Qxc4 {[%emt 0:00:03]} Rxb2 {[%emt 0:00:23]} 24. Bc3 {[%emt 0:01:54]} Rxf2 {[%emt 0:00:53]} 25. Rxf2 {[%emt 0:00:02]} Nb5 {[%emt 0:00:26]} 26. Bxg7 {[%emt 0:01:09]} Kxg7 {[%emt 0:00:02]} 27. Bxa4 {[%emt 0:00:06]} Nd4 {[%emt 0:00:02]} 28. e5 {[%emt 0:00:41]} Qb6 {[%emt 0:00:02]} 29. Rf1 {[%emt 0:00:52]} Rb8 {[%emt 0:00:17]} 30. Rc1 {[%emt 0:00:30]} Qb2 {[%emt 0:00:17]} 31. Bd1 {[%emt 0:00:04]} Qd2 {[%emt 0:00:20]} 32. Qc3 {[%emt 0:00:18]} Qxf4 {[%emt 0:00:05]} 33. Bf3 {[%emt 0:00:27]} Qxe5 {[%emt 0:00:20]} 34. Qd3 {[%emt 0:00:41]} Rb2 {[%emt 0:00:16]} 35. Rf1 {[%emt 0:00:23]} Rxa2 {[%emt 0:00:06]} 36. Bd1 {[%emt 0:00:22]} Nf5 {[%emt 0:00:05]} 37. Qf3 {[%emt 0:00:11]} Qe3+ {[%emt 0:00:05]} 38. Kh1 {[%emt 0:00:07]} Qxf3 {[%emt 0:00:02]} 39. Bxf3 {[%emt 0:00:01]} c4 {[%emt 0:00:03]} 40. Rc1 {[%emt 0:00:03]} c3 {[%emt 0:00:08]} 41. Kg1 {[%emt 0:00:20]} Ra3 {[%emt 0:00:07]} 42. Kf2 {[%emt 0:00:05]} Nd4 {[%emt 0:00:03]} 43. Bb7 {[%emt 0:00:09]} Rb3 {[%emt 0:00:13]} 44. Ba6 {[%emt 0:00:07]} c2 {[%emt 0:00:07]} 45. Ke1 {[%emt 0:00:07]} Rb1 {[%emt 0:00:02]} 46. Kd2 {[%emt 0:00:03]} Nb3+ {[%emt 0:00:01]} 0-1

[Event "European Online Club-ch-I 2021"]
[Site "Online"]
[Date "2021.03.27"]
[Round "6.20"]
[White "Bashirli, Nail"]
[Black "Nayhebaver, Martin"]
[Result "1-0"]
[ECO "B23"]
[WhiteElo "2382"]
[BlackElo "2485"]
[Annotator "ChessBase"]
[PlyCount "125"]
[EventDate "2021.03.27"]
[EventType "team-tourn"]
[EventCountry "NET"]
[SourceTitle "playchess.com"]
[Source "ChessBase"]
[SourceQuality "1"]
[TimeControl "900+5"]

1. e4 {[%emt 0:00:00]} c5 {[%emt 0:00:02]} 2. Nc3 {[%emt 0:00:02]} Nc6 {[%emt 0:00:02]} 3. Bb5 {[%emt 0:00:12]} Nd4 {[%emt 0:00:07]} 4. Nf3 {[%emt 0:00:01]} Nxb5 {[%emt 0:00:16]} 5. Nxb5 {[%emt 0:00:04]} d6 {[%emt 0:00:03]} 6. d4 {[%emt 0:00:02]} Nf6 {[%emt 0:00:05]} 7. O-O {[%emt 0:00:27]} Nxe4 {[%emt 0:00:47]} 8. Re1 {[%emt 0:00:18]} a6 {[%emt 0:00:06]} 9. Rxe4 {[%emt 0:00:10]} axb5 {[%emt 0:00:01]} 10. dxc5 {[%emt 0:00:07]} dxc5 {[%emt 0:00:07]} 11. Qe2 {[%emt 0:00:01]} Qb6 {[%emt 0:01:03]} 12. Bg5 {[%emt 0:00:34]} f6 {[%emt 0:00:42]} 13. Be3 {[%emt 0:00:58]} Bf5 {[%emt 0:01:24]} 14. Rf4 {[%emt 0:01:18]} Bd7 {[%emt 0:00:28]} 15. Rd1 {[%emt 0:00:34]} Qc7 {[%emt 0:03:30]} 16. b4 {[%emt 0:06:21]} e5 {[%emt 0:02:09]} 17. Rh4 {[%emt 0:00:03]} cxb4 {[%emt 0:01:09]} 18. h3 {[%emt 0:03:51]} Be7 {[%emt 0:00:38]} 19. Qd3 {[%emt 0:00:15]} O-O-O {[%emt 0:00:55]} 20. Rxh7 {[%emt 0:00:02]} Rhg8 {[%emt 0:01:01]} 21. Qg6 {[%emt 0:00:07]} Be8 {[%emt 0:01:09]} 22. Qg4+ {[%emt 0:00:02]} Bd7 {[%emt 0:00:01]} 23. Qg6 {[%emt 0:00:02]} Be8 {[%emt 0:00:40]} 24. Rxd8+ {[%emt 0:00:12]} Qxd8 {[%emt 0:00:01]} 25. Qg4+ {[%emt 0:00:26]} Qd7 {[%emt 0:00:02]} 26. Qe4 {[%emt 0:00:11]} Bf7 {[%emt 0:00:07]} 27. Nh4 {[%emt 0:00:19]} Qc6 {[%emt 0:00:19]} 28. Qg4+ {[%emt 0:00:07]} Qe6 {[%emt 0:00:05]} 29. Nf5 {[%emt 0:00:07]} Bf8 {[%emt 0:00:05]} 30. Rh4 {[%emt 0:00:26]} Kb8 {[%emt 0:00:09]} 31. Qf3 {[%emt 0:00:05]} Bg6 {[%emt 0:00:06]} 32. Ng3 {[%emt 0:00:05]} Bxc2 {[%emt 0:00:02]} 33. Qe2 {[%emt 0:00:01]} Qc6 {[%emt 0:00:04]} 34. Bd2 {[%emt 0:00:05]} Bc5 {[%emt 0:00:12]} 35. Bxb4 {[%emt 0:00:02]} g5 {[%emt 0:00:05]} 36. Rg4 {[%emt 0:00:16]} f5 {[%emt 0:00:10]} 37. Qxe5+ {[%emt 0:00:02]} Ka8 {[%emt 0:00:02]} 38. Bxc5 {[%emt 0:00:01]} fxg4 {[%emt 0:00:04]} 39. hxg4 {[%emt 0:00:02]} Re8 {[%emt 0:00:06]} 40. Qxg5 {[%emt 0:00:01]} Bb1 {[%emt 0:00:06]} 41. a3 {[%emt 0:00:03]} Ba2 {[%emt 0:00:03]} 42. Be3 {[%emt 0:00:09]} Bd5 {[%emt 0:00:01]} 43. f3 {[%emt 0:00:03]} Bc4 {[%emt 0:00:06]} 44. Bf2 {[%emt 0:00:05]} Qd7 {[%emt 0:00:02]} 45. Qc5 {[%emt 0:00:05]} Kb8 {[%emt 0:00:11]} 46. Nf5 {[%emt 0:00:08]} Qd1+ {[%emt 0:00:02]} 47. Kh2 {[%emt 0:00:02]} Rh8+ {[%emt 0:00:02]} 48. Kg3 {[%emt 0:00:01]} Qh1 {[%emt 0:00:15]} 49. Qa7+ {[%emt 0:00:09]} Kc8 {[%emt 0:00:06]} 50. Qc5+ {[%emt 0:00:03]} Kb8 {[%emt 0:00:01]} 51. Be3 {[%emt 0:00:12]} Qe1+ {[%emt 0:00:04]} 52. Kf4 {[%emt 0:00:03]} Qh1 {[%emt 0:00:08]} 53. Qd6+ {[%emt 0:00:08]} Ka8 {[%emt 0:00:03]} 54. Qd4 {[%emt 0:00:05]} Qh2+ {[%emt 0:00:05]} 55. g3 {[%emt 0:00:01]} Kb8 {[%emt 0:00:03]} 56. Qe5+ {[%emt 0:00:03]} Ka8 {[%emt 0:00:01]} 57. Qc5 {[%emt 0:00:07]} Kb8 {[%emt 0:00:02]} 58. Bd4 {[%emt 0:00:10]} Re8 {[%emt 0:00:14]} 59. Be5+ {[%emt 0:00:05]} Ka8 {[%emt 0:00:01]} 60. Qb4 {[%emt 0:00:01]} b6 {[%emt 0:00:10]} 61. Qd6 {[%emt 0:00:02]} Rc8 {[%emt 0:00:05]} 62. Qd7 {[%emt 0:00:05]} Rg8 {[%emt 0:00:09]} 63. Qd6 {[%emt 0:00:15]} 1-0

[Event "European Online Club-ch-I 2021"]
[Site "Online"]
[Date "2021.03.27"]
[Round "7.1"]
[White "Muradli, Mahammad"]
[Black "Ribbegren, Karl Johan"]
[Result "1-0"]
[ECO "A56"]
[WhiteElo "2449"]
[BlackElo "2185"]
[Annotator "NA"]
[PlyCount "87"]
[EventDate "2021.03.27"]
[EventType "team-tourn"]
[EventCountry "NET"]
[SourceTitle "playchess.com"]
[Source "ChessBase"]
[SourceQuality "1"]
[TimeControl "900+5"]

1. d4 {[%emt 0:00:00]} Nf6 {[%emt 0:00:03]} 2. c4 {[%emt 0:00:03]} c5 {[%emt 0:00:01]} 3. d5 {[%emt 0:00:01]} e5 {[%emt 0:00:03]} 4. Nc3 {[%emt 0:00:09]} d6 {[%emt 0:00:01]} 5. e4 {[%emt 0:00:01]} Nbd7 {[%emt 0:00:02]} 6. Be2 {[%emt 0:00:06]} Be7 {[%emt 0:00:06]} 7. Be3 {[%emt 0:00:07]} a6 {[%emt 0:00:06]} 8. a4 {[%emt 0:00:03]} Nf8 {[%emt 0:00:05]} 9. h4 {[%emt 0:01:26]} h5 {[%emt 0:00:25]} 10. f3 {[%emt 0:00:31]} N6h7 {[%emt 0:01:20]} 11. g3 {[%emt 0:00:16]} g5 {[%emt 0:00:11]} 12. hxg5 {[%emt 0:00:07]} Bxg5 {[%emt 0:00:03]} 13. f4 {[%emt 0:00:06]} exf4 {[%emt 0:00:11]} 14. gxf4 {[%emt 0:00:02]} Bh4+ {[%emt 0:00:15]} 15. Kd2 {[%emt 0:00:04]} Ng6 {[%emt 0:00:47]} 16. Bxh5 {[%emt 0:01:25]} Nf6 {[%emt 0:01:07]} 17. Bf3 {[%emt 0:03:07]} Qe7 {[%emt 0:03:10]} 18. Kc2 {[%emt 0:00:46]} Bd7 {[%emt 0:00:25]} 19. f5 {[%emt 0:00:12]} Ne5 {[%emt 0:00:05]} 20. Bg5 {[%emt 0:00:13]} O-O-O {[%emt 0:01:23]} 21. Rxh4 {[%emt 0:00:21]} Rhg8 {[%emt 0:00:13]} 22. Nh3 {[%emt 0:00:26]} Rxg5 {[%emt 0:01:17]} 23. Nxg5 {[%emt 0:00:03]} Rg8 {[%emt 0:00:04]} 24. Qd2 {[%emt 0:01:03]} Rxg5 {[%emt 0:00:19]} 25. Qxg5 {[%emt 0:00:04]} Nxf3 {[%emt 0:00:04]} 26. Rh8+ {[%emt 0:00:03]} Kc7 {[%emt 0:00:01]} 27. Qf4 {[%emt 0:00:08]} Nd4+ {[%emt 0:01:01]} 28. Kd3 {[%emt 0:00:18]} Bc8 {[%emt 0:01:17]} 29. Qh4 {[%emt 0:02:25]} Nf3 {[%emt 0:00:28]} 30. Qg3 {[%emt 0:00:58]} Ne5+ {[%emt 0:00:03]} 31. Kc2 {[%emt 0:00:07]} Nxc4 {[%emt 0:00:14]} 32. Re1 {[%emt 0:00:19]} Qe5 {[%emt 0:00:49]} 33. Qxe5 {[%emt 0:00:07]} Nxe5 {[%emt 0:00:02]} 34. a5 {[%emt 0:00:04]} Nf3 {[%emt 0:00:09]} 35. Rf1 {[%emt 0:00:07]} Nd4+ {[%emt 0:00:09]} 36. Kb1 {[%emt 0:00:07]} Ng4 {[%emt 0:00:05]} 37. Rf8 {[%emt 0:00:08]} Ne5 {[%emt 0:00:05]} 38. Rg1 {[%emt 0:00:05]} Nb3 {[%emt 0:00:15]} 39. Rg7 {[%emt 0:00:05]} Bd7 {[%emt 0:00:17]} 40. Rfxf7 {[%emt 0:00:05]} Nxf7 {[%emt 0:00:03]} 41. Rxf7 {[%emt 0:00:01]} Nxa5 {[%emt 0:00:07]} 42. e5 {[%emt 0:00:09]} dxe5 {[%emt 0:00:05]} 43. Ne4 {[%emt 0:00:02]} Nc4 {[%emt 0:00:12]} 44. Nxc5 {[%emt 0:00:03]} 1-0

[Event "European Online Club-ch-I 2021"]
[Site "Online"]
[Date "2021.03.27"]
[Round "7.2"]
[White "Verdier, Patrice"]
[Black "Mammadzada, Gunay"]
[Result "0-1"]
[ECO "D13"]
[WhiteElo "2109"]
[BlackElo "2443"]
[Annotator "NA"]
[PlyCount "98"]
[EventDate "2021.03.27"]
[EventType "team-tourn"]
[EventCountry "NET"]
[SourceTitle "playchess.com"]
[Source "ChessBase"]
[SourceQuality "1"]
[TimeControl "900+5"]

1. d4 {[%emt 0:00:00]} d5 {[%emt 0:00:13]} 2. c4 {[%emt 0:00:04]} c6 {[%emt 0:00:02]} 3. Nc3 {[%emt 0:00:03]} Nf6 {[%emt 0:00:02]} 4. Nf3 {[%emt 0:00:01]} a6 {[%emt 0:00:04]} 5. cxd5 {[%emt 0:00:41]} cxd5 {[%emt 0:00:03]} 6. Bf4 {[%emt 0:00:03]} Nc6 {[%emt 0:00:17]} 7. Rc1 {[%emt 0:00:06]} Bf5 {[%emt 0:01:30]} 8. e3 {[%emt 0:00:16]} Rc8 {[%emt 0:00:45]} 9. Be2 {[%emt 0:00:17]} e6 {[%emt 0:01:14]} 10. a3 {[%emt 0:00:43]} Be7 {[%emt 0:02:44]} 11. O-O {[%emt 0:00:07]} O-O {[%emt 0:00:04]} 12. Nh4 {[%emt 0:00:28]} Be4 {[%emt 0:00:35]} 13. f3 {[%emt 0:00:31]} Bg6 {[%emt 0:00:03]} 14. Nxg6 {[%emt 0:00:05]} hxg6 {[%emt 0:00:02]} 15. g4 {[%emt 0:01:50]} Nd7 {[%emt 0:01:13]} 16. Bg3 {[%emt 0:02:41]} Na5 {[%emt 0:00:27]} 17. e4 {[%emt 0:01:02]} dxe4 {[%emt 0:00:42]} 18. fxe4 {[%emt 0:00:03]} Bg5 {[%emt 0:00:04]} 19. Rc2 {[%emt 0:01:14]} Be3+ {[%emt 0:00:22]} 20. Kh1 {[%emt 0:00:02]} Nb3 {[%emt 0:00:08]} 21. d5 {[%emt 0:00:13]} Nd4 {[%emt 0:00:16]} 22. Bd3 {[%emt 0:00:50]} Nxc2 {[%emt 0:00:10]} 23. Bxc2 {[%emt 0:00:02]} e5 {[%emt 0:00:47]} 24. Bb3 {[%emt 0:00:22]} Bd4 {[%emt 0:00:38]} 25. Qf3 {[%emt 0:00:32]} Qb6 {[%emt 0:00:41]} 26. Ne2 {[%emt 0:00:21]} Qf6 {[%emt 0:00:50]} 27. Qg2 {[%emt 0:00:09]} Qe7 {[%emt 0:00:09]} 28. Nxd4 {[%emt 0:00:28]} exd4 {[%emt 0:00:02]} 29. d6 {[%emt 0:00:02]} Qg5 {[%emt 0:00:38]} 30. Bf4 {[%emt 0:00:16]} Qb5 {[%emt 0:00:13]} 31. Qh3 {[%emt 0:00:32]} d3 {[%emt 0:00:26]} 32. Bd1 {[%emt 0:00:20]} Rfe8 {[%emt 0:00:39]} 33. Bf3 {[%emt 0:00:20]} Ne5 {[%emt 0:00:12]} 34. Bd1 {[%emt 0:00:19]} Rcd8 {[%emt 0:00:16]} 35. g5 {[%emt 0:01:01]} Qc4 {[%emt 0:00:21]} 36. Qe3 {[%emt 0:00:43]} Rxd6 {[%emt 0:00:16]} 37. Bg3 {[%emt 0:00:22]} Rd7 {[%emt 0:00:27]} 38. Rf4 {[%emt 0:00:22]} d2 {[%emt 0:00:04]} 39. Kg2 {[%emt 0:00:13]} Nd3 {[%emt 0:00:05]} 40. Rh4 {[%emt 0:00:05]} Nxb2 {[%emt 0:00:06]} 41. Bb3 {[%emt 0:00:11]} d1=Q {[%emt 0:00:07]} 42. Bxd1 {[%emt 0:00:14]} Rxd1 {[%emt 0:00:08]} 43. Qf3 {[%emt 0:00:06]} Rd3 {[%emt 0:00:14]} 44. Qg4 {[%emt 0:00:11]} Qe6 {[%emt 0:00:05]} 45. Qf4 {[%emt 0:00:02]} Red8 {[%emt 0:00:03]} 46. Bf2 {[%emt 0:00:09]} Nd1 {[%emt 0:00:04]} 47. Bc5 {[%emt 0:00:04]} Rd2+ {[%emt 0:00:03]} 48. Kh1 {[%emt 0:00:05]} Nc3 {[%emt 0:00:12]} 49. Qg3 {[%emt 0:00:07]} Nxe4 {[%emt 0:00:03]} 0-1

[Event "European Online Club-ch-I 2021"]
[Site "Online"]
[Date "2021.03.27"]
[Round "7.3"]
[White "Shahaliyev, Ismayil"]
[Black "Van Hoolandt, Patrick"]
[Result "1-0"]
[ECO "C65"]
[WhiteElo "2413"]
[BlackElo "2017"]
[Annotator "NA"]
[PlyCount "97"]
[EventDate "2021.03.27"]
[EventType "team-tourn"]
[EventCountry "NET"]
[SourceTitle "playchess.com"]
[Source "ChessBase"]
[SourceQuality "1"]
[TimeControl "900+5"]

1. e4 {[%emt 0:00:00]} e5 {[%emt 0:00:03]} 2. Nf3 {[%emt 0:00:03]} Nc6 {[%emt 0:00:02]} 3. Bb5 {[%emt 0:00:02]} Nf6 {[%emt 0:00:02]} 4. d3 {[%emt 0:00:02]} Bc5 {[%emt 0:00:01]} 5. c3 {[%emt 0:00:01]} O-O {[%emt 0:00:02]} 6. Nbd2 {[%emt 0:00:08]} Re8 {[%emt 0:00:10]} 7. O-O {[%emt 0:00:07]} a6 {[%emt 0:00:07]} 8. Ba4 {[%emt 0:00:05]} b5 {[%emt 0:00:02]} 9. Bb3 {[%emt 0:00:06]} d6 {[%emt 0:01:02]} 10. h3 {[%emt 0:00:03]} h6 {[%emt 0:00:06]} 11. a4 {[%emt 0:00:07]} Bd7 {[%emt 0:00:42]} 12. Re1 {[%emt 0:00:30]} Qe7 {[%emt 0:00:43]} 13. Nf1 {[%emt 0:00:10]} Bb6 {[%emt 0:00:35]} 14. Ng3 {[%emt 0:00:28]} b4 {[%emt 0:00:16]} 15. d4 {[%emt 0:01:33]} exd4 {[%emt 0:01:58]} 16. cxd4 {[%emt 0:00:03]} a5 {[%emt 0:00:34]} 17. Bf4 {[%emt 0:00:19]} Nh7 {[%emt 0:00:26]} 18. Qd2 {[%emt 0:00:29]} Rad8 {[%emt 0:00:04]} 19. Rac1 {[%emt 0:00:04]} Qf6 {[%emt 0:00:42]} 20. Be3 {[%emt 0:00:22]} Ne7 {[%emt 0:00:34]} 21. e5 {[%emt 0:01:49]} dxe5 {[%emt 0:00:34]} 22. dxe5 {[%emt 0:00:01]} Qg6 {[%emt 0:00:12]} 23. Nh4 {[%emt 0:00:47]} Bxe3 {[%emt 0:00:38]} 24. Qxe3 {[%emt 0:00:05]} Qg5 {[%emt 0:01:20]} 25. Bxf7+ {[%emt 0:00:57]} Kxf7 {[%emt 0:00:08]} 26. e6+ {[%emt 0:00:06]} Kf8 {[%emt 0:01:42]} 27. exd7 {[%emt 0:01:23]} Rxd7 {[%emt 0:00:00]} 28. Qf3+ {[%emt 0:01:00]} Qf6 {[%emt 0:00:45]} 29. Qg4 {[%emt 0:00:50]} Rd4 {[%emt 0:00:09]} 30. Ne4 {[%emt 0:00:05]} Qf7 {[%emt 0:01:34]} 31. Qg3 {[%emt 0:01:13]} Nd5 {[%emt 0:00:35]} 32. Ng6+ {[%emt 0:01:21]} Kg8 {[%emt 0:00:02]} 33. Nc5 {[%emt 0:00:02]} Ng5 {[%emt 0:00:16]} 34. Ne5 {[%emt 0:00:25]} Qf4 {[%emt 0:00:15]} 35. Qxf4 {[%emt 0:00:32]} Nxf4 {[%emt 0:00:00]} 36. h4 {[%emt 0:00:10]} Nf7 {[%emt 0:00:13]} 37. Nf3 {[%emt 0:00:39]} Rdd8 {[%emt 0:00:29]} 38. Rxe8+ {[%emt 0:00:08]} Rxe8 {[%emt 0:00:02]} 39. Kf1 {[%emt 0:00:01]} Nd6 {[%emt 0:00:14]} 40. g3 {[%emt 0:00:10]} Nd5 {[%emt 0:00:04]} 41. Nb3 {[%emt 0:00:08]} Ra8 {[%emt 0:00:20]} 42. Rc5 {[%emt 0:00:06]} Nb6 {[%emt 0:00:08]} 43. Rxc7 {[%emt 0:00:42]} Nxa4 {[%emt 0:00:05]} 44. Rd7 {[%emt 0:00:21]} Ne4 {[%emt 0:00:11]} 45. Nbd4 {[%emt 0:00:27]} Nxb2 {[%emt 0:00:02]} 46. Ne6 {[%emt 0:00:02]} a4 {[%emt 0:00:22]} 47. Rxg7+ {[%emt 0:00:03]} Kh8 {[%emt 0:00:03]} 48. Ne5 {[%emt 0:00:02]} Nxg3+ {[%emt 0:00:17]} 49. Kg2 {[%emt 0:00:14]} 1-0

[Event "European Online Club-ch-I 2021"]
[Site "Online"]
[Date "2021.03.27"]
[Round "7.4"]
[White "Rapaire, Jean-Michel"]
[Black "Bashirli, Nail"]
[Result "0-1"]
[ECO "B02"]
[WhiteElo "1739"]
[BlackElo "2382"]
[Annotator "NA"]
[PlyCount "100"]
[EventDate "2021.03.27"]
[EventType "team-tourn"]
[EventCountry "NET"]
[SourceTitle "playchess.com"]
[Source "ChessBase"]
[SourceQuality "1"]
[TimeControl "900+5"]

1. e4 {[%emt 0:00:00]} Nf6 {[%emt 0:00:03]} 2. Nc3 {[%emt 0:00:40]} d5 {[%emt 0:00:04]} 3. exd5 {[%emt 0:00:10]} Nxd5 {[%emt 0:00:03]} 4. Nxd5 {[%emt 0:00:02]} Qxd5 {[%emt 0:00:02]} 5. Qf3 {[%emt 0:00:02]} Qe5+ {[%emt 0:00:38]} 6. Qe3 {[%emt 0:00:10]} Qxe3+ {[%emt 0:00:05]} 7. dxe3 {[%emt 0:00:10]} Nc6 {[%emt 0:00:18]} 8. Bb5 {[%emt 0:00:09]} Bd7 {[%emt 0:00:04]} 9. Bd2 {[%emt 0:00:21]} O-O-O {[%emt 0:00:02]} 10. O-O-O {[%emt 0:00:06]} e5 {[%emt 0:00:15]} 11. Ne2 {[%emt 0:00:14]} f6 {[%emt 0:00:17]} 12. e4 {[%emt 0:00:49]} Bc5 {[%emt 0:00:18]} 13. f3 {[%emt 0:00:09]} h5 {[%emt 0:00:17]} 14. a3 {[%emt 0:00:40]} h4 {[%emt 0:00:10]} 15. h3 {[%emt 0:00:04]} Be6 {[%emt 0:00:48]} 16. Bxc6 {[%emt 0:00:40]} bxc6 {[%emt 0:00:03]} 17. Bb4 {[%emt 0:00:47]} Be3+ {[%emt 0:00:08]} 18. Kb1 {[%emt 0:00:02]} Bc4 {[%emt 0:00:03]} 19. Nc3 {[%emt 0:00:18]} c5 {[%emt 0:00:15]} 20. Ba5 {[%emt 0:00:11]} Kb7 {[%emt 0:00:11]} 21. Nd5 {[%emt 0:02:35]} Bxd5 {[%emt 0:00:45]} 22. Rxd5 {[%emt 0:00:13]} Kc6 {[%emt 0:04:16]} 23. Rhd1 {[%emt 0:00:15]} Rd6 {[%emt 0:00:02]} 24. c4 {[%emt 0:00:11]} Rh5 {[%emt 0:00:59]} 25. Re1 {[%emt 0:02:16]} Bd4 {[%emt 0:00:11]} 26. Re2 {[%emt 0:00:30]} Kd7 {[%emt 0:01:18]} 27. Rxd6+ {[%emt 0:00:11]} cxd6 {[%emt 0:00:09]} 28. Kc2 {[%emt 0:00:23]} Rh8 {[%emt 0:01:04]} 29. Be1 {[%emt 0:00:07]} g6 {[%emt 0:00:20]} 30. b3 {[%emt 0:00:54]} Kc6 {[%emt 0:00:06]} 31. Bd2 {[%emt 0:00:29]} a6 {[%emt 0:00:06]} 32. Ba5 {[%emt 0:00:10]} f5 {[%emt 0:00:14]} 33. Be1 {[%emt 0:00:20]} Kd7 {[%emt 0:00:16]} 34. Kd3 {[%emt 0:00:17]} Ke6 {[%emt 0:00:04]} 35. Kc2 {[%emt 0:00:05]} Kf6 {[%emt 0:00:05]} 36. b4 {[%emt 0:00:45]} cxb4 {[%emt 0:01:14]} 37. Bxb4 {[%emt 0:00:18]} Ke6 {[%emt 0:00:29]} 38. Kd3 {[%emt 0:00:06]} Rb8 {[%emt 0:00:27]} 39. Kc2 {[%emt 0:00:22]} Kd7 {[%emt 0:00:08]} 40. Bc3 {[%emt 0:00:09]} Bc5 {[%emt 0:00:08]} 41. Bb2 {[%emt 0:00:16]} Kc6 {[%emt 0:00:04]} 42. Rd2 {[%emt 0:00:12]} a5 {[%emt 0:00:02]} 43. Rd3 {[%emt 0:00:49]} a4 {[%emt 0:00:08]} 44. Bc1 {[%emt 0:00:14]} Rf8 {[%emt 0:00:11]} 45. Bg5 {[%emt 0:00:05]} fxe4 {[%emt 0:00:18]} 46. fxe4 {[%emt 0:00:08]} Rf2+ {[%emt 0:00:28]} 47. Kb1 {[%emt 0:00:12]} Rxg2 {[%emt 0:00:07]} 48. Bxh4 {[%emt 0:00:02]} Re2 {[%emt 0:00:01]} 49. Rg3 {[%emt 0:00:19]} Rxe4 {[%emt 0:00:07]} 50. Rxg6 {[%emt 0:00:04]} Rxh4 {[%emt 0:00:02]} 0-1